bitfinex/quotes_ETHUSD_20250517
["timestamp","ask_amount","ask_price","bid_price","bid_amount"]
[1747467863185,16.62602304,2492.5,2492.4,0.6667]
[1747467864002,16.62602304,2492.5,2491.7,24.53426846]
[1747467864003,4.81416317,2491.8,2491.5,4.94299968]
[1747467864323,14.63687596,2491.6,2491.5,0.5728]
[1747467864483,13.36529087,2491.1,2491.0,4.40131774]
[1747467864687,23.51107217,2491.1,2491.0,4.40131774]
[1747467865000,25.79226955,2491.1,2491.0,4.40131774]
[1747467866197,18.19126955,2491.1,2491.0,4.40131774]
[1747467866394,25.80926955,2491.1,2491.0,4.40131774]
[1747467866593,22.25568152,2491.1,2491.0,4.40131774]
[1747467867703,14.63768152,2491.1,2491.0,4.40131774]
[1747467867904,24.11107923,2491.1,2491.0,4.40131774]
[1747467868217,24.11107923,2491.1,2491.0,4.22138854]
[1747467869020,24.11107923,2491.1,2490.0,14.26709019]
[1747467869021,4.01477436,2490.8,2490.0,6.79009019]
[1747467869226,23.32194245,2490.8,2490.7,1.54801522]
[1747467869409,25.07788901,2490.8,2490.7,1.14201522]
[1747467869989,25.61355311,2490.8,2490.7,1.14201522]
[1747467870322,25.61355311,2490.8,2490.0,6.79009019]
[1747467870323,13.36939676,2490.6,2490.5,4.31853265]
[1747467870524,4.56590297,2490.1,2490.0,6.79009019]
[1747467870728,23.45253312,2490.1,2490.0,6.79009019]
[1747467871087,13.37020297,2490.1,2490.0,6.79009019]
[1747467871535,8.55,2490.1,2490.0,6.79009019]
[1747467871721,20.20090297,2490.1,2490.0,6.79009019]
[1747467872111,22.94823224,2490.1,2490.0,6.79009019]
[1747467872287,23.75253224,2490.1,2490.0,6.79009019]
[1747467872929,24.55253224,2490.1,2490.0,6.79009019]
[1747467873338,4.79021637,2489.1,2489.0,8.08478867]
[1747467873491,4.79021637,2489.1,2488.5,8.69114782]
[1747467873492,4.01832355,2488.6,2488.5,8.69114782]
[1747467873827,20.31432355,2488.6,2488.5,8.69114782]
[1747467873999,14.54250099,2488.6,2488.5,8.69114782]
[1747467874202,30.07050099,2488.6,2488.5,8.69114782]
[1747467874607,15.7933537,2488.6,2488.5,8.69114782]
[1747467874806,13.34102355,2488.6,2488.5,8.69114782]
[1747467875021,20.33632355,2488.6,2488.5,8.69114782]
[1747467876017,12.01832355,2488.6,2488.5,8.69114782]
[1747467876254,15.777,2488.6,2488.5,8.69114782]
[1747467876527,19.79532355,2488.6,2488.5,8.69114782]
[1747467876735,15.777,2488.6,2488.5,8.69114782]
[1747467877137,3.00233015,2488.9,2488.0,21.08079544]
[1747467877138,7.775,2488.7,2488.1,4.81391756]
[1747467877335,8.0,2488.6,2488.3,4.01879122]
[1747467877630,9.15396596,2489.0,2488.2,1.25779176]
[1747467877833,13.17177568,2489.0,2488.4,4.01856346]
[1747467878034,8.0,2488.8,2488.4,4.01856346]
[1747467878229,0.55,2488.7,2488.4,6.02]
[1747467878403,8.0,2488.8,2488.4,6.02]
[1747467878921,15.772,2488.8,2488.4,10.0386388]
[1747467879122,15.772,2488.8,2488.4,6.02]
[1747467879302,15.772,2488.8,2488.4,10.0386173]
[1747467879510,8.0,2488.8,2488.4,6.02]
[1747467879715,15.768,2488.8,2488.4,6.02]
[1747467880035,15.768,2488.8,2488.4,10.03858839]
[1747467880240,8.0,2488.8,2488.5,4.01846205]
[1747467880398,15.766,2488.8,2488.6,6.02]
[1747467880724,8.0,2488.8,2488.6,6.02]
[1747467880925,7.763,2489.0,2488.7,6.02]
[1747467881126,8.0,2488.9,2488.7,2.89150203]
[1747467881524,8.0,2489.0,2488.7,2.89150203]
[1747467881821,12.01769012,2489.0,2488.7,2.89150203]
[1747467882321,8.0,2489.0,2488.7,2.89150203]
[1747467882551,8.0,2489.0,2488.6,16.3]
[1747467882824,4.01795814,2488.9,2488.7,7.77]
[1747467883603,4.01795814,2488.9,2488.8,6.02]
[1747467884536,4.56795814,2488.9,2488.8,6.02]
[1747467884719,0.55,2488.8,2488.3,6.02]
[1747467884921,4.01862344,2488.5,2488.3,13.79]
[1747467885097,0.55,2488.6,2488.4,6.02]
[1747467885310,8.316,2488.6,2488.4,6.02]
[1747467885502,12.33447703,2488.6,2488.4,6.02]
[1747467885705,4.01848503,2488.5,2488.4,6.02]
[1747467886275,12.334399,2488.6,2488.4,6.02]
[1747467886949,4.01896545,2488.3,2488.0,0.7827]
[1747467887128,4.01937466,2488.0,2487.8,7.77]
[1747467887327,4.01961572,2487.8,2487.7,7.77]
[1747467888337,8.55,2487.6,2487.5,0.66666667]
[1747467888635,13.88192463,2487.6,2487.5,0.66666667]
[1747467888859,20.35293889,2487.6,2487.5,0.66666667]
[1747467889152,20.35493889,2487.6,2487.5,0.66666667]
[1747467889457,20.73153326,2487.6,2487.5,0.66666667]
[1747467889639,12.94653326,2487.6,2487.5,0.66666667]
[1747467889838,20.75053326,2487.6,2487.5,0.66666667]
[1747467890626,20.74853326,2487.6,2487.5,0.66666667]
[1747467890873,12.94653326,2487.6,2487.5,0.66666667]
[1747467891066,8.92659437,2487.6,2487.5,0.66666667]
[1747467891228,20.74953326,2487.6,2487.5,0.66666667]
[1747467891422,23.22646634,2487.6,2487.5,0.66666667]
[1747467892331,23.22846634,2487.6,2487.5,0.66666667]
[1747467892534,20.75053326,2487.6,2487.5,0.66666667]
[1747467892749,12.39653326,2487.6,2487.5,0.66666667]
[1747467892945,0.37659437,2487.6,2487.5,0.66666667]
[1747467893141,7.805,2487.6,2487.5,0.66666667]
[1747467893346,20.37493889,2487.6,2487.5,0.66666667]
[1747467893544,22.81441254,2487.6,2487.5,0.66666667]
[1747467894630,20.37393889,2487.6,2487.5,6.68666667]
[1747467894938,0.63665668,2487.8,2487.6,5.17011858]
[1747467896646,4.0197773,2487.7,2487.6,5.17011858]
[1747467897165,4.5697773,2487.7,2487.6,4.21479048]
[1747467897461,5.67396534,2487.7,2487.6,4.21479048]
[1747467898361,4.01993889,2487.6,2487.5,0.66666667]
[1747467898659,4.79713889,2487.6,2487.5,0.66666667]
[1747467898867,12.61913889,2487.6,2487.5,0.66666667]
[1747467899075,16.67305962,2487.6,2487.5,0.66666667]
[1747467899647,11.84193889,2487.6,2487.5,0.66666667]
[1747467900171,4.01993889,2487.6,2487.5,0.66666667]
[1747467900340,19.83993889,2487.6,2487.5,0.66666667]
[1747467901079,0.30876997,2488.0,2487.5,4.88145715]
[1747467901381,7.823,2488.0,2487.5,4.88145715]
[1747467901573,4.01985321,2487.7,2487.5,4.88145715]
[1747467902084,4.01969265,2487.8,2487.5,4.88145715]
[1747467902240,12.47403674,2487.9,2487.5,4.88145715]
[1747467902241,4.65393566,2487.9,2487.5,4.88145715]
[1747467903274,4.65393566,2487.9,2487.6,0.7573]
[1747467903462,0.63445606,2487.9,2487.6,0.7573]
[1747467903665,0.63445606,2487.9,2487.6,6.11853484]
[1747467903984,0.63445606,2488.0,2487.6,2.09867572]
[1747467904134,0.63445606,2488.0,2487.6,6.11846356]
[1747467904343,0.63445606,2488.0,2487.8,0.7573]
[1747467904540,0.63445606,2488.0,2487.9,7.814]
[1747467904764,0.63445606,2488.0,2487.9,9.49456285]
[1747467905076,0.63445606,2488.0,2487.9,13.514017]
[1747467905275,0.55,2487.9,2487.5,1.42396667]
[1747467905462,4.56945415,2487.9,2487.8,6.02]
[1747467905646,12.40845415,2487.9,2487.8,6.02]
[1747467906049,4.01993889,2487.6,2487.5,0.66666667]
[1747467906360,4.82389435,2487.6,2487.5,0.66666667]
[1747467906587,13.37389435,2487.6,2487.5,0.66666667]
[1747467907271,19.86093889,2487.6,2487.5,0.66666667]
[1747467908567,12.01993889,2487.6,2487.5,0.66666667]
[1747467908775,0.7915,2487.9,2487.5,6.68666667]
[1747467908950,4.01957053,2487.9,2487.5,6.68666667]
[1747467909143,4.32751848,2488.0,2487.5,6.68666667]
[1747467909475,0.6352274,2487.7,2487.6,11.8337835]
[1747467909702,0.6352274,2487.7,2487.6,28.1337835]
[1747467909839,0.6352274,2487.7,2487.6,24.8713]
[1747467910444,0.6352274,2487.7,2487.6,28.89123889]
[1747467910667,4.6550047,2487.7,2487.6,17.0573]
[1747467910864,13.52246929,2487.7,2487.6,16.3]
[1747467911070,21.91946929,2487.7,2487.6,6.02]
[1747467911406,12.56993889,2487.6,2487.5,0.59541564]
[1747467911679,21.17543889,2487.6,2487.5,0.59541564]
[1747467911877,21.97543889,2487.6,2487.5,0.59541564]
[1747467912050,15.02259227,2487.4,2487.3,6.02]
[1747467912446,20.42626212,2487.4,2487.3,6.02]
[1747467912684,19.88026212,2487.4,2487.3,6.02]
[1747467912995,15.86,2487.4,2487.3,6.02]
[1747467913302,15.86,2487.5,2487.3,6.02]
[1747467913866,7.86,2487.5,2487.4,6.02]
[1747467914075,1.27769434,2487.6,2487.4,6.02]
[1747467914385,1.27769434,2487.6,2487.5,0.7657]
[1747467914594,7.854,2488.0,2487.7,4.74230566]
[1747467915461,4.01922563,2488.1,2487.7,4.74230566]
[1747467915669,0.8274,2488.4,2487.7,4.74230566]
[1747467915867,4.01901784,2488.2,2487.9,0.7657]
[1747467916063,7.861,2488.3,2487.9,0.7657]
[1747467916293,7.862,2488.2,2487.9,0.7657]
[1747467916466,5.29711504,2488.4,2487.9,0.7657]
[1747467916467,4.74711504,2488.4,2487.9,2.49985064]
[1747467916660,12.61611504,2488.4,2487.9,2.49985064]
[1747467916861,8.76576295,2488.4,2488.0,4.74230566]
[1747467917103,16.63376295,2488.4,2488.0,4.74230566]
[1747467917301,12.61511504,2488.4,2488.0,4.74230566]
[1747467917599,12.61511504,2488.4,2488.0,8.76157377]
[1747467917888,12.61011504,2488.4,2488.0,8.76157377]
[1747467918069,12.61011504,2488.4,2488.1,5.57450566]
[1747467918070,4.74711504,2488.4,2488.1,5.57450566]
[1747467918276,4.01896953,2488.2,2488.1,5.57450566]
[1747467918481,8.76588052,2488.4,2488.1,5.57450566]
[1747467918482,4.74711504,2488.4,2488.1,13.38850566]
[1747467918880,4.01892775,2488.3,2488.1,13.38850566]
[1747467919082,8.76586198,2488.4,2488.1,13.38850566]
[1747467919494,8.76578014,2488.4,2488.1,13.38850566]
[1747467920324,15.02115888,2488.3,2488.2,4.74230566]
[1747467920538,4.01945415,2487.9,2487.8,4.74230566]
[1747467920665,11.91845415,2487.9,2487.6,4.74230566]
[1747467920865,8.0,2488.2,2487.6,7.51118011]
[1747467921067,4.01910061,2488.2,2487.6,11.53102091]
[1747467921264,6.81382629,2488.4,2487.7,4.01963242]
[1747467921522,15.903,2488.3,2487.6,7.51118011]
[1747467921719,4.01920956,2488.1,2487.6,11.53109765]
[1747467921992,7.906,2488.3,2487.8,4.01950659]
[1747467922198,4.01899816,2488.2,2487.7,4.85193749]
[1747467922397,4.01896953,2488.2,2487.7,0.8322]
[1747467922989,4.01924637,2488.1,2487.7,0.8322]
[1747467924600,4.74711504,2488.4,2487.8,8.76190194]
[1747467924912,11.91592508,2488.3,2487.8,8.76190194]
[1747467925080,4.74711504,2488.4,2487.9,4.01942613]
[1747467925281,11.91580866,2488.3,2487.8,8.76184602]
[1747467925589,7.897,2488.3,2487.8,4.74230566]
[1747467925787,4.01896953,2488.2,2487.8,4.74230566]
[1747467926201,13.18026624,2488.3,2487.8,4.74230566]
[1747467926202,4.01944813,2488.0,2487.8,4.74230566]
[1747467926368,4.01945415,2487.9,2487.8,4.74230566]
[1747467926766,12.01945415,2487.9,2487.8,4.74230566]
[1747467926998,21.15565415,2487.9,2487.8,4.74230566]
[1747467927295,4.02058539,2487.2,2487.1,4.74230566]
[1747467927501,4.02058539,2487.2,2486.6,8.6086]
[1747467927502,4.02090469,2487.1,2486.6,8.6086]
[1747467927796,4.0212321,2486.8,2486.7,4.74230566]
[1747467927999,4.02115417,2486.9,2486.7,4.74230566]
[1747467928198,4.0212321,2486.8,2486.7,4.74230566]
[1747467928603,4.0212321,2486.8,2486.4,4.74230566]
[1747467928604,4.02171727,2486.5,2486.4,4.74230566]
[1747467928810,11.93871727,2486.5,2486.4,4.74230566]
[1747467929099,8.0,2486.5,2486.4,4.74230566]
[1747467929400,4.02091903,2487.0,2486.5,4.8001932]
[1747467929602,12.02077691,2487.1,2486.6,4.74230566]
[1747467929783,4.02093259,2487.0,2486.6,4.74230566]
[1747467930187,7.922,2487.0,2486.6,4.74230566]
[1747467930592,12.02082788,2487.1,2486.6,4.74230566]
[1747467930871,7.922,2487.0,2486.6,4.74230566]
[1747467931772,4.02053348,2487.3,2486.7,8.76362253]
[1747467931974,4.01989552,2487.7,2487.1,4.02060533]
[1747467932300,11.93706695,2487.6,2486.9,4.02101405]
[1747467932481,15.925,2487.7,2487.2,0.8281]
[1747467932682,7.925,2487.7,2487.3,7.815]
[1747467933082,0.3037906,2488.0,2487.4,4.02013701]
[1747467933083,8.0,2487.8,2487.4,4.02013701]
[1747467933273,15.925,2487.9,2487.5,4.74230566]
[1747467933473,1.2644115,2488.3,2487.7,4.84784223]
[1747467933685,1.2644115,2488.3,2487.8,4.74230566]
[1747467933686,7.929,2488.0,2487.8,4.74230566]
[1747467933881,1.2644115,2488.3,2487.8,8.76180923]
[1747467934079,5.10515306,2488.3,2487.8,4.74230566]
[1747467934281,7.929,2488.2,2487.8,4.74230566]
[1747467935069,13.10519297,2488.3,2487.8,8.76188027]
[1747467935303,1.08632452,2488.3,2487.9,4.01933118]
[1747467935474,7.923,2488.2,2487.9,4.01933118]
[1747467935802,7.921,2488.2,2487.8,12.66930566]
[1747467935995,11.93998512,2488.2,2487.8,12.66930566]
[1747467936307,4.01945415,2487.9,2487.8,4.74230566]
[1747467937279,12.01918424,2488.1,2487.8,4.74230566]
[1747467937280,4.01917319,2488.1,2487.8,4.74230566]
[1747467937469,15.922,2488.0,2487.8,4.74230566]
[1747467937687,7.922,2488.1,2487.8,4.74230566]
[1747467937888,11.94113611,2488.1,2487.8,4.74230566]
[1747467939608,11.94113611,2488.1,2487.9,4.74230566]
[1747467939771,5.27705473,2488.0,2487.9,4.74230566]
[1747467939977,13.27705473,2488.0,2487.9,4.74230566]
[1747467940388,14.11025473,2488.0,2487.9,4.74230566]
[1747467942816,14.41140834,2488.0,2487.9,4.74230566]
[1747467943021,22.31540834,2488.0,2487.9,4.74230566]
[1747467943811,23.91654049,2488.0,2487.9,4.74230566]
[1747467944615,1.60613215,2488.0,2487.9,5.50120566]
[1747467944911,5.62542475,2488.0,2487.9,5.50120566]
[1747467945111,1.60613215,2488.0,2487.9,5.50120566]
[1747467945617,8.0,2488.4,2488.0,3.13617351]
[1747467945810,8.0,2488.1,2488.0,3.13617351]
[1747467946386,7.902,2488.2,2488.0,3.13617351]
[1747467946590,15.901,2488.2,2488.0,3.13617351]
[1747467947520,2.01486917,2488.1,2488.0,3.13617351]
[1747467948424,6.03400023,2488.1,2488.0,3.13617351]
[1747467948623,2.01486917,2488.1,2488.0,3.13617351]
[1747467949535,6.58400023,2488.1,2488.0,3.13617351]
[1747467949726,9.29676964,2488.1,2488.0,3.13617351]
[1747467950426,7.28190047,2488.1,2488.0,3.13617351]
[1747467950933,3.26276941,2488.1,2488.0,3.13617351]
[1747467951125,7.28190047,2488.1,2488.0,3.13617351]
[1747467952045,15.28190047,2488.1,2488.0,3.13617351]
[1747467952771,23.16090047,2488.1,2488.0,3.13617351]
[1747467953104,15.28190047,2488.1,2488.0,3.13617351]
[1747467953319,23.15990047,2488.1,2488.0,3.13617351]
[1747467953601,15.28190047,2488.1,2488.0,3.13617351]
[1747467953948,19.89413106,2488.1,2488.0,3.13617351]
[1747467954301,20.44613106,2488.1,2488.0,3.13617351]
[1747467954935,12.56913106,2488.1,2488.0,3.13617351]
[1747467955134,20.44513106,2488.1,2488.0,3.13617351]
[1747467955437,20.44513106,2488.1,2488.0,6.15617351]
[1747467955633,25.18845011,2488.1,2488.0,6.15617351]
[1747467959537,17.31245011,2488.1,2488.0,6.15617351]
[1747467959838,25.16745011,2488.1,2488.0,6.15617351]
[1747467960039,28.45228026,2488.1,2488.0,0.13617351]
[1747467960209,36.37828026,2488.1,2488.0,0.13617351]
[1747467960411,36.57806536,2488.1,2488.0,0.13617351]
[1747467960744,5.40276212,2487.4,2487.3,6.02]
[1747467960915,5.40276212,2487.4,2486.7,0.7703]
[1747467960916,12.0210704,2486.9,2486.8,6.02]
[1747467961124,4.02128995,2486.8,2486.6,6.02]
[1747467961308,4.02128995,2486.8,2486.7,6.02]
[1747467961738,19.890124,2486.9,2486.7,6.02]
[1747467962043,12.021124,2486.9,2486.7,6.02]
[1747467962346,8.0,2486.9,2486.7,6.02]
[1747467962714,12.02109743,2486.9,2486.7,6.02]
[1747467963054,0.63779913,2486.8,2486.7,6.7835]
[1747467963345,0.63779913,2486.8,2486.7,11.885415]
[1747467964218,0.63779913,2486.8,2486.7,6.7835]
[1747467964818,4.65903123,2486.8,2486.7,6.7835]
[1747467965053,0.63779913,2486.8,2486.7,6.7835]
[1747467965410,0.47777785,2486.8,2486.7,6.7835]
[1747467965717,4.49900995,2486.8,2486.7,6.02]
[1747467966037,6.40339333,2486.8,2486.7,6.02]
[1747467967036,7.17129333,2486.8,2486.7,6.02]
[1747467967635,18.17362348,2486.8,2486.7,6.02]
[1747467968039,26.04162348,2486.8,2486.7,6.02]
[1747467968338,25.56384563,2486.8,2486.7,6.02]
[1747467969314,4.78110255,2486.2,2486.1,6.02]
[1747467969534,21.20510255,2486.2,2486.1,6.02]
[1747467969735,8.55,2486.1,2485.6,6.02]
[1747467969945,0.55,2486.1,2485.6,6.02]
[1747467970119,11.89362079,2486.0,2485.7,6.02]
[1747467970444,4.02284978,2485.8,2485.7,6.02]
[1747467970646,12.02284978,2485.8,2485.7,6.02]
[1747467970862,4.02301162,2485.7,2485.6,6.02]
[1747467971616,12.32389034,2485.8,2485.6,6.02]
[1747467971617,12.32394584,2485.8,2485.6,6.02]
[1747467972163,8.55,2485.7,2485.6,6.02]
[1747467972353,4.57365391,2485.4,2484.8,0.7971]
[1747467972651,4.02358248,2485.4,2484.9,11.89928475]
[1747467972852,2.76979012,2485.8,2484.9,11.89928475]
[1747467972853,0.30103943,2485.8,2484.9,9.14463848]
[1747467973164,6.95079192,2486.0,2485.2,4.02376902]
[1747467973165,7.965,2485.7,2485.2,4.02376902]
[1747467973460,7.965,2485.7,2485.3,11.89855849]
[1747467974025,12.02275442,2485.9,2485.3,11.89855849]
[1747467974352,12.02275442,2485.9,2485.2,4.02381419]
[1747467974353,7.961,2485.8,2485.4,8.6594]
[1747467974672,4.02335939,2485.5,2485.4,7.876]
[1747467974951,4.57335939,2485.5,2484.8,4.80881017]
[1747467975152,4.02375478,2485.3,2484.8,0.7844]
[1747467975354,4.0239717,2485.2,2484.9,7.876]
[1747467975563,4.0239717,2485.2,2485.0,7.876]
[1747467975757,11.9929717,2485.2,2484.8,0.7844]
[1747467975947,4.02353502,2485.4,2484.9,7.876]
[1747467976270,8.55,2485.1,2483.9,0.7844]
[1747467976446,8.55,2485.1,2484.3,4.02514299]
[1747467976447,4.02439003,2484.9,2484.3,4.02514299]
[1747467976632,4.02439003,2484.9,2484.4,4.02510991]
[1747467976843,7.975,2484.8,2484.5,7.876]
[1747467977240,7.975,2484.8,2484.4,4.02505828]
[1747467977463,7.975,2484.8,2484.6,7.876]
[1747467977774,7.975,2484.8,2484.7,6.02]
[1747467977775,8.0,2484.8,2484.7,6.02]
[1747467977942,8.118,2484.8,2484.7,6.02]
[1747467978149,4.02431038,2484.9,2484.7,6.02]
[1747467978471,8.115,2484.8,2484.7,6.02]
[1747467978624,12.13946877,2484.8,2484.7,6.02]
[1747467979868,14.19083117,2484.8,2484.7,6.02]
[1747467980053,12.02463074,2484.7,2484.6,6.02]
[1747467981277,12.02511672,2484.4,2484.3,6.02]
[1747467981448,4.02542439,2484.3,2484.0,6.02]
[1747467981779,12.02560283,2484.1,2484.0,6.02]
[1747467982465,0.7795,2484.9,2484.1,4.02560283]
[1747467982673,12.57484828,2484.6,2484.2,7.879]
[1747467983387,8.0,2484.6,2484.2,7.879]
[1747467983564,8.0,2484.6,2484.1,4.02555463]
[1747467983565,8.128,2484.5,2484.0,10.04569623]
[1747467983763,12.02469984,2484.7,2484.1,11.90559472]
[1747467983987,8.133,2484.6,2484.1,11.90559472]
[1747467984170,8.133,2484.6,2484.1,12.70839472]
[1747467984371,12.15787443,2484.6,2484.1,8.6828]
[1747467984570,12.15787443,2484.6,2484.2,6.02]
[1747467984992,4.0245915,2484.8,2484.2,10.04542898]
[1747467985151,8.125,2484.7,2484.3,6.02]
[1747467985351,0.55,2484.9,2484.3,10.04521979]
[1747467985577,8.125,2484.7,2484.3,6.02]
[1747467985886,8.125,2484.7,2484.3,10.04524882]
[1747467986251,12.14963676,2484.7,2484.3,6.02]
[1747467986496,8.125,2484.7,2484.3,6.02]
[1747467986882,8.125,2484.7,2484.3,10.0452658]
[1747467987989,8.125,2484.7,2484.3,6.02]
[1747467987990,12.14963782,2484.7,2484.3,6.02]
[1747467988173,8.125,2484.7,2484.3,10.04526492]
[1747467988374,12.0243547,2484.9,2484.4,4.02511163]
[1747467988688,8.11,2484.8,2484.4,4.02511071]
[1747467988886,8.11,2484.7,2484.4,4.02511071]
[1747467989892,8.11,2484.7,2484.3,6.02]
[1747467990081,4.02456735,2484.8,2484.3,10.04527746]
[1747467990266,4.02431056,2484.9,2484.4,4.02504004]
[1747467990471,12.12451147,2484.8,2484.3,6.02]
[1747467990678,12.12451147,2484.8,2484.4,6.02]
[1747467990679,4.02495471,2484.5,2484.4,6.02]
[1747467990857,12.12453339,2484.8,2484.4,6.02]
[1747467990858,8.0,2484.7,2484.4,6.02]
[1747467991063,4.42678852,2484.9,2484.4,6.02]
[1747467991258,8.113,2484.8,2484.4,10.04504199]
[1747467991499,8.41803994,2484.8,2484.4,10.04504199]
[1747467991693,8.41803994,2484.8,2484.4,6.02]
[1747467991694,12.44251312,2484.8,2484.4,6.02]
[1747467992791,8.0,2485.1,2484.5,0.7509]
[1747467992969,1.25543561,2485.2,2484.6,11.90577669]
[1747467993160,0.47593561,2485.2,2484.8,4.02433937]
[1747467993368,4.02446877,2484.8,2484.7,6.02]
[1747467993578,4.57446877,2484.8,2484.7,6.02]
[1747467993777,12.57446877,2484.8,2484.7,6.02]
[1747467994174,13.39826877,2484.8,2484.7,6.02]
[1747467994373,15.14052906,2484.8,2484.7,6.02]
[1747467994583,4.02511672,2484.4,2484.3,6.02]
[1747467994788,4.02560283,2484.1,2484.0,6.02]
[1747467995667,12.02560283,2484.1,2484.0,6.02]
[1747467995867,13.71308805,2484.1,2484.0,6.02]
[1747467996390,12.02560283,2484.1,2484.0,6.02]
[1747467996575,8.0,2484.1,2484.0,6.02]
[1747467996777,12.02560283,2484.1,2484.0,6.02]
[1747467999200,12.57560283,2484.1,2484.0,6.02]
[1747468000103,12.57560283,2484.1,2483.3,6.02]
[1747468000104,12.02673753,2483.4,2483.3,6.02]
[1747468000277,12.02673753,2483.4,2483.1,8.162]
[1747468000278,12.02685408,2483.4,2483.1,14.182]
[1747468000621,16.154,2483.5,2483.2,6.02]
[1747468000784,12.18070481,2483.5,2483.2,6.02]
[1747468000979,12.17961525,2483.5,2483.2,6.02]
[1747468001180,12.57615024,2483.8,2483.2,6.02]
[1747468001393,20.72723805,2483.8,2483.2,6.02]
[1747468001594,4.02651953,2483.6,2483.2,6.02]
[1747468001790,12.22527978,2483.7,2483.2,10.8690252]
[1747468002001,8.199,2483.7,2483.2,10.8690252]
[1747468002327,12.22527605,2483.7,2483.2,10.8690252]
[1747468002489,8.197,2483.9,2483.2,6.842]
[1747468002687,8.199,2484.1,2483.6,4.02631282]
[1747468003023,8.199,2484.1,2483.6,8.163]
[1747468003024,4.02576489,2484.0,2483.6,8.163]
[1747468003198,0.47571949,2483.7,2483.6,8.163]
[1747468004735,0.47571949,2483.7,2483.6,12.18941327]
[1747468005519,0.63458082,2483.9,2483.8,4.02608905]
[1747468005801,0.63458082,2483.9,2483.8,15.09328905]
[1747468005999,0.63458082,2484.1,2484.0,4.81296489]
[1747468006207,0.63458082,2484.1,2484.0,15.09296489]
[1747468007377,0.63458082,2484.8,2484.0,11.0672]
[1747468007580,0.63458082,2484.8,2484.2,0.7872]
[1747468007773,0.63458082,2484.8,2484.5,4.02486385]
[1747468008109,0.63458082,2484.8,2484.7,4.81183074]
[1747468008485,0.63458082,2484.8,2484.7,0.7872]
[1747468008887,0.63458082,2484.8,2484.7,4.81183074]
[1747468009201,0.63458082,2484.8,2484.7,0.7872]
[1747468009584,0.63458082,2485.1,2484.6,5.54428051]
[1747468009794,4.02463074,2484.7,2484.6,5.54428051]
[1747468010112,4.82133074,2484.7,2484.6,5.54428051]
[1747468010284,13.37133074,2484.7,2484.6,5.54428051]
[1747468011282,4.57511672,2484.4,2484.3,5.54428051]
[1747468011486,4.02592415,2484.0,2483.7,8.162]
[1747468011708,4.02592696,2483.9,2483.8,6.02]
[1747468013413,21.55882696,2483.9,2483.8,6.02]
[1747468015309,21.58982696,2483.9,2483.8,6.02]
[1747468015504,13.39682696,2483.9,2483.8,6.02]
[1747468015684,23.70488131,2483.9,2483.8,6.02]
[1747468017426,23.69488131,2483.9,2483.8,6.02]
[1747468017622,4.02680106,2483.4,2483.2,6.02]
[1747468017823,12.20780106,2483.4,2483.1,0.7871]
[1747468018030,12.20782042,2483.4,2483.1,0.7871]
[1747468018350,0.55,2483.8,2483.1,0.7871]
[1747468018635,4.02672159,2483.5,2483.1,1.68201]
[1747468019421,4.026927,2483.3,2483.1,1.68201]
[1747468019622,4.02641327,2483.6,2483.1,1.68201]
[1747468020023,4.02684004,2483.4,2483.1,0.7871]
[1747468020521,4.02684004,2483.4,2482.8,6.02]
[1747468020825,8.191,2483.3,2482.9,4.02751954]
[1747468021058,4.0267798,2483.4,2483.1,0.8076]
[1747468021210,4.02669501,2483.5,2483.1,0.8076]
[1747468021406,12.2228856,2483.4,2483.1,0.8076]
[1747468021796,12.22278188,2483.4,2483.1,0.8076]
[1747468022029,8.196,2483.4,2483.1,0.8076]
[1747468022210,12.22273783,2483.4,2483.1,0.8076]
[1747468022429,8.196,2483.4,2483.1,0.8076]
[1747468022603,12.22282853,2483.4,2483.1,0.8076]
[1747468022803,4.02706185,2483.2,2482.8,6.02]
[1747468023037,4.02754843,2482.9,2482.8,6.02]
[1747468023236,4.02750279,2483.0,2482.6,8.164]
[1747468023425,8.199,2482.9,2482.6,8.164]
[1747468023626,12.22667654,2482.9,2482.6,8.164]
[1747468024115,8.199,2482.9,2482.6,8.164]
[1747468025154,0.55,2482.8,2482.1,0.7889]
[1747468025308,0.55,2482.8,2482.1,8.9839]
[1747468025643,8.192,2482.7,2482.5,0.7889]
[1747468025836,4.02774182,2482.8,2482.5,0.7889]
[1747468026143,8.195,2482.7,2482.5,0.7889]
[1747468027104,4.02763648,2482.9,2482.5,0.7889]
[1747468027312,8.185,2482.8,2482.6,4.02803512]
[1747468027533,0.63482294,2483.2,2483.1,4.02709293]
[1747468027723,0.63482294,2483.2,2483.1,29.37926125]
[1747468027944,0.63482294,2483.2,2483.1,46.72699293]
[1747468029130,0.63482294,2483.2,2483.1,6.8369]
[1747468029325,5.12805763,2483.2,2483.1,6.02]
[1747468029550,0.63482294,2483.2,2483.1,6.02]
[1747468029707,8.85682294,2483.2,2483.1,6.02]
[1747468030031,4.02693382,2483.3,2483.1,6.02]
[1747468030213,8.221,2483.2,2483.1,6.02]
[1747468030651,2.00371931,2483.4,2483.1,6.02]
[1747468030844,8.217,2483.3,2483.1,6.02]
[1747468031044,8.215,2483.2,2483.1,6.02]
[1747468031348,12.24206185,2483.2,2483.1,6.02]
[1747468031574,13.66663183,2483.2,2483.1,6.02]
[1747468031943,4.02795936,2482.7,2482.4,6.02]
[1747468032249,17.63956998,2483.2,2482.3,28.4849]
[1747468032250,8.228,2482.6,2482.5,6.02]
[1747468032915,4.02722403,2483.1,2482.5,6.02]
[1747468033118,0.63482294,2483.4,2483.1,6.02]
[1747468033339,12.25589968,2483.3,2483.2,6.02]
[1747468034127,4.66163153,2483.4,2483.2,6.02]
[1747468034445,0.63482294,2483.4,2483.2,6.02]
[1747468034614,0.63482294,2483.4,2483.3,1.4189]
[1747468034834,0.63482294,2483.4,2483.3,0.8169]
[1747468035037,8.218,2483.5,2483.3,0.8169]
[1747468035738,4.02650308,2483.6,2483.3,0.8169]
[1747468035940,8.221,2483.5,2483.3,0.8169]
[1747468036134,4.02673753,2483.4,2483.3,0.8169]
[1747468036449,12.24764744,2483.5,2483.3,0.8169]
[1747468036764,6.02986517,2483.8,2483.3,0.8169]
[1747468036938,12.23832712,2483.7,2483.3,0.8169]